Organisation Name,Content,Date,Expense_Type,Expense_Area,Supplier,Transaction_ Number,Amount_GBP
Architects Registration Board,Spend over GBP500 May 2010,04/05/2010,Facilities,Overheads,Belfor-Relectronic (UK),77934,587.50
Architects Registration Board,Spend over GBP500 May 2010,04/05/2010,Facilities,Overheads,Westminster Council,78158,"7,673.36"
Architects Registration Board,Spend over GBP500 May 2010,04/05/2010,Internet,Overheads,BT,77940,"2,232.56"
Architects Registration Board,Spend over GBP500 May 2010,04/05/2010,IT,Corporate,Sage,77974,"1,169.13"
Architects Registration Board,Spend over GBP500 May 2010,04/05/2010,IT,Corporate,Sage,77975,"1,539.25"
Architects Registration Board,Spend over GBP500 May 2010,04/05/2010,IT,Registration,Drakefell,77947,"5,358.00"
Architects Registration Board,Spend over GBP500 May 2010,04/05/2010,Legal,Professional Standards,Bankside Law,77931,"1,220.83"
Architects Registration Board,Spend over GBP500 May 2010,04/05/2010,Legal,Professional Standards,Bankside Law,77932,"3,107.29"
Architects Registration Board,Spend over GBP500 May 2010,04/05/2010,Legal,Professional Standards,Bankside Law,77933,779.03
Architects Registration Board,Spend over GBP500 May 2010,04/05/2010,Legal,Professional Standards,Field Fisher Waterhouse,77951,"4,093.64"
Architects Registration Board,Spend over GBP500 May 2010,04/05/2010,Legal & Professional Fees,Corporate,Horwath Clark Whitehill,77958,763.75
Architects Registration Board,Spend over GBP500 May 2010,04/05/2010,PCC costs,Professional Standards,Ubiqus,77980,"1,410.00"
Architects Registration Board,Spend over GBP500 May 2010,04/05/2010,Postage,Registration,Royal Mail,77972,"1,297.90"
Architects Registration Board,Spend over GBP500 May 2010,04/05/2010,Postage,Registration,Royal Mail,77973,"1,122.17"
Architects Registration Board,Spend over GBP500 May 2010,04/05/2010,Public & Prof Awareness,Professional Standards,Premier IT Networks,77970,"4,688.25"
Architects Registration Board,Spend over GBP500 May 2010,04/05/2010,Stationery,Overheads,Eurostat Office Solutions,77950,807.93
Architects Registration Board,Spend over GBP500 May 2010,10/05/2010,Public & Prof Awareness,Corporate,Yell.Com,78399,"1,615.27"
Architects Registration Board,Spend over GBP500 May 2010,10/05/2010,Public & Prof Awareness,Professional Standards,Google,78611,526.21
Architects Registration Board,Spend over GBP500 May 2010,12/05/2010,Electricity,Overheads,Npower,78190,"1,332.11"
Architects Registration Board,Spend over GBP500 May 2010,12/05/2010,Facilities,Overheads,Medland Metropolis,78182,599.25
Architects Registration Board,Spend over GBP500 May 2010,12/05/2010,Inquirers ,Professional Standards,Robert Johnston,78194,"2,499.93"
Architects Registration Board,Spend over GBP500 May 2010,12/05/2010,IT,Corporate,VETO Design,78208,"2,051.55"
Architects Registration Board,Spend over GBP500 May 2010,12/05/2010,IT,Corporate,VETO Design,78209,740.25
Architects Registration Board,Spend over GBP500 May 2010,12/05/2010,IT,Overheads,Databarracks,78173,"1,506.35"
Architects Registration Board,Spend over GBP500 May 2010,12/05/2010,Legal & Professional Fees,Corporate,Russell Cooke,78198,"2,952.18"
Architects Registration Board,Spend over GBP500 May 2010,12/05/2010,Legal & Professional Fees,Corporate,Russell Cooke,78200,"4,967.90"
Architects Registration Board,Spend over GBP500 May 2010,12/05/2010,Legal & Professional Fees,Corporate,Russell Cooke,78201,"4,815.15"
Architects Registration Board,Spend over GBP500 May 2010,12/05/2010,Legal & Professional Fees,Corporate,Russell Cooke,78202,"3,675.40"
Architects Registration Board,Spend over GBP500 May 2010,12/05/2010,Legal & Professional Fees,Corporate,Russell Cooke,78203,592.20
Architects Registration Board,Spend over GBP500 May 2010,12/05/2010,Legal & Professional Fees,Corporate,Russell Cooke,78204,"2,500.40"
Architects Registration Board,Spend over GBP500 May 2010,12/05/2010,Legal & Professional Fees,Registration,Russell Cooke,78199,"1,645.00"
Architects Registration Board,Spend over GBP500 May 2010,12/05/2010,Misuse of Title,Professional Standards,Wright Son & Pepper,78212,"1,321.88"
Architects Registration Board,Spend over GBP500 May 2010,12/05/2010,Printing,Corporate,NT & A,78191,"3,478.00"
Architects Registration Board,Spend over GBP500 May 2010,12/05/2010,Printing,Corporate,Sage,78205,545.69
Architects Registration Board,Spend over GBP500 May 2010,12/05/2010,Scanning,Registration,Capita,78171,659.40
Architects Registration Board,Spend over GBP500 May 2010,12/05/2010,Telephone,Overheads,BT,78413,"1,448.69"
Architects Registration Board,Spend over GBP500 May 2010,14/05/2010,Cleaning,Overheads,Sloane,78363,"2,000.67"
Architects Registration Board,Spend over GBP500 May 2010,14/05/2010,IT,Registration,Drakefell,78352,"3,243.00"
Architects Registration Board,Spend over GBP500 May 2010,14/05/2010,Printing,Overheads,Rustin Clark,78358,"1,027.82"
Architects Registration Board,Spend over GBP500 May 2010,14/05/2010,Printing,Professional Standards,Rustin Clark,78359,"3,219.50"
Architects Registration Board,Spend over GBP500 May 2010,14/05/2010,Printing,Registration,Rustin Clark,78357,769.63
Architects Registration Board,Spend over GBP500 May 2010,14/05/2010,Saff,Registration,BIS,78349,911.65
Architects Registration Board,Spend over GBP500 May 2010,25/05/2010,Board Training,Corporate,McKenzie HR Consultants,78474,"1,471.75"
Architects Registration Board,Spend over GBP500 May 2010,25/05/2010,PCC costs,Professional Standards,Jameson & Hill,78471,"1,197.00"
Architects Registration Board,Spend over GBP500 May 2010,25/05/2010,PCC costs,Professional Standards,Jameson & Hill,78472,"1,197.00"
Architects Registration Board,Spend over GBP500 May 2010,28/05/2010,Board costs,Corporate,Melia White House,78534,793.15
Architects Registration Board,Spend over GBP500 May 2010,28/05/2010,Facilities,Overheads,Zip Heaters (UK),78540,"1,184.12"
Architects Registration Board,Spend over GBP500 May 2010,28/05/2010,IT,Assets,Redinet,78537,"19,365.17"
Architects Registration Board,Spend over GBP500 May 2010,28/05/2010,IT,Assets,Redinet,78538,"1,175.00"
Architects Registration Board,Spend over GBP500 May 2010,28/05/2010,IT,Registration,Drakefell,78529,"1,739.00"
Architects Registration Board,Spend over GBP500 May 2010,28/05/2010,Legal & Professional Fees,Corporate,Russell Cooke,78480,"1,000.00"
Architects Registration Board,Spend over GBP500 May 2010,28/05/2010,Legal & Professional Fees,Corporate,Russell Cooke,78539,965.26
Architects Registration Board,Spend over GBP500 May 2010,28/05/2010,Public & Prof Awareness,Corporate,Centaur,78527,749.66
